[Event "ROU-ch Open 2021"]
[Site "Iasi"]
[Date "2021.04.23"]
[Round "7.13"]
[White "Negrean, Andrei"]
[Black "Ghimpu, Samuel-Timotei"]
[Result "0-1"]
[ECO "B42"]
[WhiteElo "1904"]
[BlackElo "2315"]
[Annotator "NA"]
[PlyCount "120"]
[EventDate "2021.04.19"]
[EventType "swiss"]
[EventCountry "ROU"]
[SourceTitle "playchess.com"]
[Source "ChessBase"]
[SourceQuality "1"]
[TimeControl "5400+30"]

1. e4 {[%emt 0:00:00]} c5 {[%emt 0:00:00]} 2. Nf3 {[%emt 0:00:00]} a6 {[%emt 0:00:15]} 3. c4 {[%emt 0:00:33]} e6 {[%emt 0:01:09]} 4. d4 {[%emt 0:07:39]} cxd4 {[%emt 0:01:23]} 5. Nxd4 {[%emt 0:00:08]} Nf6 {[%emt 0:00:16]} 6. Nc3 {[%emt 0:00:24]} Qc7 {[%emt 0:01:28]} 7. Bd3 {[%emt 0:02:40]} Nc6 {[%emt 0:06:40]} 8. Nxc6 {[%emt 0:08:24]} dxc6 {[%emt 0:00:46]} 9. O-O {[%emt 0:05:22]} e5 {[%emt 0:03:15]} 10. Qe2 {[%emt 0:07:44]} Be6 {[%emt 0:10:50]} 11. h3 {[%emt 0:05:37]} Bc5 {[%emt 0:04:31]} 12. Bg5 {[%emt 0:01:58]} O-O-O {[%emt 0:02:43]} 13. Rab1 {[%emt 0:11:12]} h6 {[%emt 0:03:47]} 14. Be3 {[%emt 0:00:47]} Bxe3 {[%emt 0:18:16]} 15. Qxe3 {[%emt 0:03:58]} Rd4 {[%emt 0:01:40]} 16. Ne2 {[%emt 0:00:51]} Rd7 {[%emt 0:00:07]} 17. b4 {[%emt 0:05:57]} Rhd8 {[%emt 0:02:17]} 18. Rb3 {[%emt 0:00:21]} Nh5 {[%emt 0:02:37]} 19. Rc3 {[%emt 0:16:08]} Nf4 {[%emt 0:03:11]} 20. Nxf4 {[%emt 0:01:36]} exf4 {[%emt 0:00:09]} 21. Qf3 {[%emt 0:04:45]} g5 {[%emt 0:01:29]} 22. Rfc1 {[%emt 0:00:55]} h5 {[%emt 0:10:25]} 23. Qe2 {[%emt 0:06:34]} g4 {[%emt 0:00:35]} 24. hxg4 {[%emt 0:00:26]} hxg4 {[%emt 0:00:15]} 25. f3 {[%emt 0:01:07]} g3 {[%emt 0:02:47]} 26. Kf1 {[%emt 0:01:37]} Qe5 {[%emt 0:04:00]} 27. Ke1 {[%emt 0:03:10]} Qh8 {[%emt 0:00:43]} 28. b5 {[%emt 0:01:06]} Rd4 {[%emt 0:06:20]} 29. bxc6 {[%emt 0:00:29]} bxc6 {[%emt 0:00:07]} 30. c5 {[%emt 0:00:33]} Kc7 {[%emt 0:03:28]} 31. Qf1 {[%emt 0:01:39]} a5 {[%emt 0:01:24]} 32. Rb1 {[%emt 0:00:59]} Rxe4+ {[%emt 0:00:45]} 33. Kd2 {[%emt 0:00:36]} Re3 {[%emt 0:01:09]} 34. Re1 {[%emt 0:00:51]} Rdxd3+ {[%emt 0:02:12]} 35. Rxd3 {[%emt 0:00:20]} Qb2+ {[%emt 0:00:04]} 36. Kd1 {[%emt 0:00:10]} Qb1+ {[%emt 0:00:04]} 37. Kd2 {[%emt 0:00:06]} Qxa2+ {[%emt 0:00:05]} 38. Kc1 {[%emt 0:00:55]} Qa1+ {[%emt 0:00:08]} 39. Kd2 {[%emt 0:00:10]} Qb2+ {[%emt 0:00:05]} 40. Kd1 {[%emt 0:00:07]} Bb3+ {[%emt 0:00:49]} 41. Rxb3 {[%emt 0:00:07]} Qxb3+ {[%emt 0:00:05]} 42. Kd2 {[%emt 0:00:14]} Qc3+ {[%emt 0:00:05]} 43. Kd1 {[%emt 0:00:05]} Rd3+ {[%emt 0:00:03]} 44. Qxd3 {[%emt 0:00:08]} Qxd3+ {[%emt 0:00:05]} 45. Kc1 {[%emt 0:00:03]} Qc3+ {[%emt 0:00:16]} 46. Kd1 {[%emt 0:00:04]} Qd4+ {[%emt 0:00:18]} 47. Ke2 {[%emt 0:00:14]} Qf2+ {[%emt 0:00:08]} 48. Kd1 {[%emt 0:00:05]} Qxg2 {[%emt 0:00:03]} 49. Re7+ {[%emt 0:00:05]} Kd8 {[%emt 0:00:03]} 50. Rxf7 {[%emt 0:00:00]} Qxf3+ {[%emt 0:00:00]} 51. Kc2 {[%emt 0:00:00]} g2 {[%emt 0:00:03]} 52. Rf8+ {[%emt 0:00:00]} Ke7 {[%emt 0:00:06]} 53. Rg8 {[%emt 0:00:00]} g1=Q {[%emt 0:00:13]} 54. Rxg1 {[%emt 0:00:00]} Qf2+ {[%emt 0:00:03]} 55. Kd3 {[%emt 0:00:06]} Qxg1 {[%emt 0:00:06]} 56. Kc4 {[%emt 0:00:04]} f3 {[%emt 0:00:05]} 57. Kd3 {[%emt 0:00:05]} f2 {[%emt 0:00:04]} 58. Kd4 {[%emt 0:00:05]} f1=Q+ {[%emt 0:00:08]} 59. Ke4 {[%emt 0:00:05]} Qg3 {[%emt 0:00:45]} 60. Kd4 {[%emt 0:00:05]} Qfd3# {[%emt 0:00:04]} 0-1

[Event "ROU-ch Open 2021"]
[Site "Iasi"]
[Date "2021.04.23"]
[Round "7.15"]
[White "Martian, Dragos-Daniel"]
[Black "Antal, Hunor-Zoltan"]
[Result "0-1"]
[ECO "C07"]
[WhiteElo "2198"]
[BlackElo "2023"]
[Annotator "NA"]
[PlyCount "86"]
[EventDate "2021.04.19"]
[EventType "swiss"]
[EventCountry "ROU"]
[SourceTitle "playchess.com"]
[Source "ChessBase"]
[SourceQuality "1"]
[TimeControl "5400+30"]

1. e4 {[%emt 0:01:38]} e6 {[%emt 0:00:00]} 2. d4 {[%emt 0:00:01]} d5 {[%emt 0:00:00]} 3. Nd2 {[%emt 0:00:02]} c5 {[%emt 0:00:00]} 4. c3 {[%emt 0:00:01]} Nc6 {[%emt 0:00:45]} 5. Ngf3 {[%emt 0:00:01]} cxd4 {[%emt 0:00:55]} 6. cxd4 {[%emt 0:00:02]} Nge7 {[%emt 0:05:13]} 7. Bd3 {[%emt 0:01:23]} dxe4 {[%emt 0:04:00]} 8. Nxe4 {[%emt 0:00:06]} Nf5 {[%emt 0:01:24]} 9. Be3 {[%emt 0:00:48]} Bb4+ {[%emt 0:00:45]} 10. Nc3 {[%emt 0:00:28]} Nxe3 {[%emt 0:01:23]} 11. fxe3 {[%emt 0:00:07]} e5 {[%emt 0:08:08]} 12. O-O {[%emt 0:05:29]} exd4 {[%emt 0:00:59]} 13. exd4 {[%emt 0:00:09]} O-O {[%emt 0:00:41]} 14. a3 {[%emt 0:09:08]} Bd6 {[%emt 0:06:53]} 15. d5 {[%emt 0:10:23]} Ne7 {[%emt 0:02:21]} 16. Kh1 {[%emt 0:00:23]} Ng6 {[%emt 0:03:29]} 17. Qc2 {[%emt 0:00:37]} Bg4 {[%emt 0:01:11]} 18. Bf5 {[%emt 0:07:46]} Bxf5 {[%emt 0:02:39]} 19. Qxf5 {[%emt 0:01:27]} Qc8 {[%emt 0:03:04]} 20. Qd3 {[%emt 0:07:13]} Qg4 {[%emt 0:03:59]} 21. Rae1 {[%emt 0:05:58]} Qxg2+ {[%emt 0:02:55]} 22. Kxg2 {[%emt 0:00:06]} Nf4+ {[%emt 0:00:06]} 23. Kh1 {[%emt 0:00:19]} Nxd3 {[%emt 0:00:02]} 24. Re2 {[%emt 0:01:02]} a6 {[%emt 0:00:25]} 25. Nd4 {[%emt 0:01:07]} g6 {[%emt 0:03:18]} 26. Rf3 {[%emt 0:02:02]} Ne5 {[%emt 0:00:42]} 27. Rf1 {[%emt 0:00:22]} Rad8 {[%emt 0:03:52]} 28. Ne4 {[%emt 0:02:19]} Nc4 {[%emt 0:01:30]} 29. a4 {[%emt 0:05:23]} Be5 {[%emt 0:01:08]} 30. Rc1 {[%emt 0:03:14]} Bxd4 {[%emt 0:01:14]} 31. Rxc4 {[%emt 0:00:14]} Rxd5 {[%emt 0:00:35]} 32. Rc7 {[%emt 0:04:16]} b5 {[%emt 0:00:51]} 33. Rc6 {[%emt 0:00:34]} bxa4 {[%emt 0:02:09]} 34. Rd2 {[%emt 0:00:27]} Rfd8 {[%emt 0:01:18]} 35. Rxa6 {[%emt 0:00:05]} f5 {[%emt 0:00:41]} 36. Ng5 {[%emt 0:00:35]} Be3 {[%emt 0:00:45]} 37. Rxd5 {[%emt 0:01:01]} Rxd5 {[%emt 0:00:01]} 38. Ra8+ {[%emt 0:00:46]} Kg7 {[%emt 0:00:02]} 39. Ne6+ {[%emt 0:00:17]} Kf6 {[%emt 0:00:14]} 40. Ra6 {[%emt 0:02:30]} Ke5 {[%emt 0:01:13]} 41. Nc7 {[%emt 0:01:03]} Rc5 {[%emt 0:00:35]} 42. Re6+ {[%emt 0:01:12]} Kf4 {[%emt 0:00:03]} 43. Re7 {[%emt 0:01:18]} Kf3 {[%emt 0:00:09]} 0-1

[Event "ROU-ch Open 2021"]
[Site "Iasi"]
[Date "2021.04.23"]
[Round "7.16"]
[White "Padurariu, Mihai-Edward"]
[Black "Ciorgovean, Iustin"]
[Result "1-0"]
[ECO "B53"]
[WhiteElo "2084"]
[BlackElo "2338"]
[Annotator "NA"]
[PlyCount "57"]
[EventDate "2021.04.19"]
[EventType "swiss"]
[EventCountry "ROU"]
[SourceTitle "playchess.com"]
[Source "ChessBase"]
[SourceQuality "1"]
[TimeControl "5400+30"]

1. e4 {[%emt 0:00:00]} c5 {[%emt 0:00:00]} 2. Nf3 {[%emt 0:00:00]} d6 {[%emt 0:00:00]} 3. d4 {[%emt 0:00:00]} cxd4 {[%emt 0:00:00]} 4. Qxd4 {[%emt 0:00:00]} Nc6 {[%emt 0:00:00]} 5. Qe3 {[%emt 0:00:03]} g6 {[%emt 0:00:00]} 6. c4 {[%emt 0:09:21]} Bg7 {[%emt 0:00:18]} 7. h3 {[%emt 0:06:10]} Nf6 {[%emt 0:00:11]} 8. Be2 {[%emt 0:00:30]} O-O {[%emt 0:00:15]} 9. O-O {[%emt 0:00:32]} Nd7 {[%emt 0:04:31]} 10. Nc3 {[%emt 0:04:30]} Qb6 {[%emt 0:00:13]} 11. Qf4 {[%emt 0:12:28]} Bxc3 {[%emt 0:01:01]} 12. bxc3 {[%emt 0:00:05]} Nde5 {[%emt 0:05:54]} 13. Nxe5 {[%emt 0:05:43]} Nxe5 {[%emt 0:01:10]} 14. Qh4 {[%emt 0:01:40]} f6 {[%emt 0:07:02]} 15. Be3 {[%emt 0:11:57]} Qb2 {[%emt 0:20:38]} 16. Rfe1 {[%emt 0:00:13]} b6 {[%emt 0:00:22]} 17. c5 {[%emt 0:08:48]} bxc5 {[%emt 0:05:18]} 18. f4 {[%emt 0:00:36]} Qxc3 {[%emt 0:10:40]} 19. fxe5 {[%emt 0:00:47]} Qxe3+ {[%emt 0:00:14]} 20. Kh1 {[%emt 0:00:02]} Qd4 {[%emt 0:02:21]} 21. exd6 {[%emt 0:00:50]} exd6 {[%emt 0:06:57]} 22. Rad1 {[%emt 0:01:37]} Qe5 {[%emt 0:01:23]} 23. Rd5 {[%emt 0:01:44]} Qb2 {[%emt 0:07:57]} 24. Rxd6 {[%emt 0:05:25]} Qxa2 {[%emt 0:00:23]} 25. e5 {[%emt 0:02:52]} Qb2 {[%emt 0:04:50]} 26. Bc4+ {[%emt 0:09:03]} Kh8 {[%emt 0:00:17]} 27. Rd8 {[%emt 0:01:22]} Kg7 {[%emt 0:02:58]} 28. exf6+ {[%emt 0:00:46]} Qxf6 {[%emt 0:00:22]} 29. Re7+ {[%emt 0:00:01]} 1-0

[Event "ROU-ch Open 2021"]
[Site "Iasi"]
[Date "2021.04.23"]
[Round "7.17"]
[White "Ognean, Mihnea-Ionut"]
[Black "Bonciu, David"]
[Result "1-0"]
[ECO "B31"]
[WhiteElo "2298"]
[BlackElo "2016"]
[Annotator "NA"]
[PlyCount "91"]
[EventDate "2021.04.19"]
[EventType "swiss"]
[EventCountry "ROU"]
[SourceTitle "playchess.com"]
[Source "ChessBase"]
[SourceQuality "1"]
[TimeControl "5400+30"]

1. e4 {[%emt 0:00:00]} c5 {[%emt 0:00:00]} 2. Nf3 {[%emt 0:00:00]} Nc6 {[%emt 0:00:00]} 3. Bb5 {[%emt 0:00:00]} g6 {[%emt 0:00:00]} 4. Bxc6 {[%emt 0:00:00]} dxc6 {[%emt 0:00:00]} 5. d3 {[%emt 0:00:04]} Bg7 {[%emt 0:00:00]} 6. h3 {[%emt 0:00:09]} Nf6 {[%emt 0:00:10]} 7. Nc3 {[%emt 0:00:16]} O-O {[%emt 0:00:06]} 8. O-O {[%emt 0:00:09]} Nd7 {[%emt 0:01:49]} 9. Be3 {[%emt 0:01:07]} e5 {[%emt 0:00:32]} 10. Qd2 {[%emt 0:00:47]} Re8 {[%emt 0:03:43]} 11. Nh2 {[%emt 0:00:49]} Qe7 {[%emt 0:05:45]} 12. f4 {[%emt 0:02:04]} exf4 {[%emt 0:02:23]} 13. Bxf4 {[%emt 0:00:24]} Nf8 {[%emt 0:04:16]} 14. Bh6 {[%emt 0:00:48]} Be6 {[%emt 0:06:43]} 15. Bxg7 {[%emt 0:01:16]} Kxg7 {[%emt 0:00:08]} 16. b3 {[%emt 0:13:38]} Rad8 {[%emt 0:02:19]} 17. Qe3 {[%emt 0:00:29]} b5 {[%emt 0:08:14]} 18. a4 {[%emt 0:03:30]} a6 {[%emt 0:02:33]} 19. axb5 {[%emt 0:01:16]} axb5 {[%emt 0:00:06]} 20. Ra6 {[%emt 0:03:40]} Qb7 {[%emt 0:08:06]} 21. Rfa1 {[%emt 0:01:26]} Nd7 {[%emt 0:00:43]} 22. Ra7 {[%emt 0:01:20]} Qb8 {[%emt 0:00:40]} 23. Ne2 {[%emt 0:06:19]} Qd6 {[%emt 0:02:52]} 24. Nf3 {[%emt 0:03:13]} Ne5 {[%emt 0:02:57]} 25. Nxe5 {[%emt 0:08:45]} Qxe5 {[%emt 0:00:07]} 26. R1a6 {[%emt 0:01:49]} Rd7 {[%emt 0:02:27]} 27. Nf4 {[%emt 0:13:20]} Rxa7 {[%emt 0:02:28]} 28. Rxa7 {[%emt 0:00:04]} Qd4 {[%emt 0:03:10]} 29. Qxd4+ {[%emt 0:00:37]} cxd4 {[%emt 0:00:05]} 30. Rc7 {[%emt 0:00:08]} g5 {[%emt 0:02:22]} 31. Ne2 {[%emt 0:00:26]} Rc8 {[%emt 0:01:01]} 32. Rxc8 {[%emt 0:00:08]} Bxc8 {[%emt 0:00:02]} 33. Nxd4 {[%emt 0:00:05]} Bd7 {[%emt 0:00:07]} 34. b4 {[%emt 0:00:10]} Kf6 {[%emt 0:00:43]} 35. Kf2 {[%emt 0:00:05]} h6 {[%emt 0:00:46]} 36. Ke3 {[%emt 0:00:23]} Ke5 {[%emt 0:00:48]} 37. Nf3+ {[%emt 0:02:52]} Kd6 {[%emt 0:00:09]} 38. Kd4 {[%emt 0:00:53]} f6 {[%emt 0:00:35]} 39. e5+ {[%emt 0:03:07]} fxe5+ {[%emt 0:00:50]} 40. Nxe5 {[%emt 0:00:05]} Be6 {[%emt 0:00:11]} 41. Ng4 {[%emt 0:01:28]} Bd5 {[%emt 0:01:26]} 42. Nxh6 {[%emt 0:00:21]} Bxg2 {[%emt 0:00:07]} 43. Nf7+ {[%emt 0:00:06]} Ke6 {[%emt 0:00:20]} 44. Nxg5+ {[%emt 0:00:05]} Kf5 {[%emt 0:00:20]} 45. h4 {[%emt 0:00:13]} Kg4 {[%emt 0:00:16]} 46. Ne4 {[%emt 0:00:34]} 1-0

[Event "ROU-ch Open 2021"]
[Site "Iasi"]
[Date "2021.04.23"]
[Round "7.19"]
[White "Magold, Victor"]
[Black "Isfan, Ioan-Marius"]
[Result "0-1"]
[ECO "E14"]
[WhiteElo "2014"]
[BlackElo "2263"]
[Annotator "NA"]
[PlyCount "104"]
[EventDate "2021.04.19"]
[EventType "swiss"]
[EventCountry "ROU"]
[SourceTitle "playchess.com"]
[Source "ChessBase"]
[SourceQuality "1"]
[TimeControl "5400+30"]

1. d4 {[%emt 0:00:00]} Nf6 {[%emt 0:00:00]} 2. Nf3 {[%emt 0:00:00]} e6 {[%emt 0:00:00]} 3. c4 {[%emt 0:00:00]} b6 {[%emt 0:00:00]} 4. e3 {[%emt 0:00:00]} Bb7 {[%emt 0:00:00]} 5. Bd3 {[%emt 0:00:09]} Bb4+ {[%emt 0:00:43]} 6. Bd2 {[%emt 0:00:14]} Bxd2+ {[%emt 0:00:09]} 7. Nbxd2 {[%emt 0:00:32]} d6 {[%emt 0:00:08]} 8. O-O {[%emt 0:00:10]} Nbd7 {[%emt 0:07:54]} 9. b4 {[%emt 0:02:11]} O-O {[%emt 0:00:00]} 10. Qb3 {[%emt 0:08:23]} Qe7 {[%emt 0:02:33]} 11. e4 {[%emt 0:02:52]} e5 {[%emt 0:01:27]} 12. d5 {[%emt 0:03:01]} Nh5 {[%emt 0:02:18]} 13. g3 {[%emt 0:10:51]} g6 14. Qc2 {[%emt 0:02:52]} Ng7 15. Nh4 {[%emt 0:03:00]} Bc8 16. Nb3 {[%emt 0:08:19]} Nf6 {[%emt 0:02:05]} 17. c5 {[%emt 0:00:00]} Nfh5 {[%emt 0:25:14]} 18. cxd6 {[%emt 0:00:00]} cxd6 {[%emt 0:00:50]} 19. Rfc1 {[%emt 0:00:00]} f5 {[%emt 0:13:00]} 20. exf5 {[%emt 0:09:47]} gxf5 21. Nd2 {[%emt 0:18:30]} e4 {[%emt 0:09:52]} 22. Bb5 {[%emt 0:00:00]} Nf4 23. Qc6 {[%emt 0:23:12]} Rb8 {[%emt 0:13:58]} 24. Qc7 {[%emt 0:00:37]} Qxc7 {[%emt 0:00:04]} 25. Rxc7 {[%emt 0:00:09]} Nxd5 {[%emt 0:05:43]} 26. Bc4 {[%emt 0:00:20]} Be6 {[%emt 0:00:03]} 27. Rxa7 {[%emt 0:00:21]} Rf7 {[%emt 0:00:47]} 28. Rxf7 {[%emt 0:00:00]} Kxf7 {[%emt 0:01:00]} 29. Bxd5 {[%emt 0:00:00]} Bxd5 {[%emt 0:00:44]} 30. a4 {[%emt 0:01:39]} Kf6 {[%emt 0:00:45]} 31. Ng2 {[%emt 0:00:00]} Ne6 32. a5 {[%emt 0:02:23]} bxa5 {[%emt 0:00:00]} 33. bxa5 {[%emt 0:01:03]} Rb2 {[%emt 0:03:32]} 34. Nf1 {[%emt 0:00:00]} Ra2 35. Rd1 {[%emt 0:00:00]} Rxa5 36. Nfe3 {[%emt 0:02:38]} Ke5 37. Nxd5 {[%emt 0:00:07]} Rxd5 {[%emt 0:02:46]} 38. Rxd5+ Kxd5 39. Ne3+ {[%emt 0:00:13]} Kc5 40. Nxf5 {[%emt 0:00:11]} d5 {[%emt 0:01:33]} 41. Kf1 {[%emt 0:01:56]} Ng5 {[%emt 0:00:32]} 42. h4 {[%emt 0:00:11]} Nf3 {[%emt 0:04:22]} 43. Ke2 {[%emt 0:01:09]} Nd4+ {[%emt 0:00:00]} 44. Nxd4 {[%emt 0:03:41]} Kxd4 {[%emt 0:00:15]} 45. Kd2 {[%emt 0:00:21]} h5 46. Ke2 {[%emt 0:00:42]} Ke5 {[%emt 0:01:26]} 47. f4+ {[%emt 0:01:08]} exf3+ {[%emt 0:00:00]} 48. Ke3 {[%emt 0:00:29]} Kf5 {[%emt 0:00:00]} 49. Kxf3 {[%emt 0:00:06]} d4 {[%emt 0:00:00]} 50. Kg2 {[%emt 0:00:49]} Ke4 {[%emt 0:00:00]} 51. Kf2 {[%emt 0:00:27]} d3 {[%emt 0:00:00]} 52. Ke1 {[%emt 0:00:17]} Ke3 {[%emt 0:00:00]} 0-1

[Event "ROU-ch Open 2021"]
[Site "Iasi"]
[Date "2021.04.23"]
[Round "7.20"]
[White "Ambru, Dan-Calin"]
[Black "Nastore, Pavel-Alexandru"]
[Result "0-1"]
[ECO "A67"]
[WhiteElo "1990"]
[BlackElo "2256"]
[Annotator "NA"]
[PlyCount "120"]
[EventDate "2021.04.19"]
[EventType "swiss"]
[EventCountry "ROU"]
[SourceTitle "playchess.com"]
[Source "ChessBase"]
[SourceQuality "1"]
[TimeControl "5400+30"]

1. d4 {[%emt 0:02:26]} Nf6 {[%emt 0:00:00]} 2. c4 {[%emt 0:00:13]} c5 {[%emt 0:00:00]} 3. d5 {[%emt 0:00:05]} e6 {[%emt 0:00:00]} 4. Nc3 {[%emt 0:00:08]} exd5 {[%emt 0:00:00]} 5. cxd5 {[%emt 0:00:05]} d6 {[%emt 0:00:03]} 6. e4 {[%emt 0:00:14]} g6 {[%emt 0:00:07]} 7. f4 {[%emt 0:00:06]} Bg7 {[%emt 0:00:05]} 8. Bb5+ {[%emt 0:00:04]} Nfd7 {[%emt 0:00:08]} 9. Be2 {[%emt 0:00:08]} Qh4+ {[%emt 0:00:08]} 10. g3 {[%emt 0:00:05]} Qd8 11. Nf3 O-O 12. O-O {[%emt 0:01:00]} Re8 {[%emt 0:03:54]} 13. Kg2 {[%emt 0:00:09]} Na6 {[%emt 0:05:51]} 14. f5 {[%emt 0:04:00]} Nf6 {[%emt 0:00:35]} 15. Bg5 {[%emt 0:00:00]} h6 {[%emt 0:05:03]} 16. Bxf6 {[%emt 0:00:00]} Bxf6 {[%emt 0:00:30]} 17. Qd2 {[%emt 0:03:08]} Kg7 {[%emt 0:09:51]} 18. fxg6 {[%emt 0:00:29]} fxg6 19. Rae1 {[%emt 0:05:58]} Nc7 {[%emt 0:08:18]} 20. a4 {[%emt 0:10:14]} b6 {[%emt 0:03:40]} 21. Bc4 {[%emt 0:05:41]} Bg4 {[%emt 0:16:19]} 22. e5 {[%emt 0:04:45]} Bxf3+ {[%emt 0:00:00]} 23. Rxf3 {[%emt 0:00:37]} Bxe5 {[%emt 0:06:18]} 24. Ref1 {[%emt 0:06:39]} Re7 {[%emt 0:03:59]} 25. Bd3 {[%emt 0:17:09]} Qg8 {[%emt 0:17:28]} 26. Qc2 {[%emt 0:04:41]} Kh7 {[%emt 0:02:07]} 27. Bxg6+ {[%emt 0:02:10]} Qxg6 {[%emt 0:00:00]} 28. Rf7+ {[%emt 0:00:07]} Rxf7 {[%emt 0:00:00]} 29. Rxf7+ {[%emt 0:00:06]} Bg7 {[%emt 0:00:00]} 30. Qxg6+ {[%emt 0:00:14]} Kxg6 {[%emt 0:00:06]} 31. Rxc7 {[%emt 0:00:13]} Bxc3 {[%emt 0:00:00]} 32. bxc3 {[%emt 0:00:01]} Kf6 {[%emt 0:00:00]} 33. Rh7 {[%emt 0:05:09]} Ke5 {[%emt 0:00:00]} 34. h4 {[%emt 0:10:47]} Kxd5 {[%emt 0:00:00]} 35. h5 {[%emt 0:00:34]} a5 {[%emt 0:03:33]} 36. Rxh6 {[%emt 0:05:29]} b5 {[%emt 0:00:19]} 37. axb5 {[%emt 0:00:37]} a4 {[%emt 0:02:48]} 38. b6 {[%emt 0:05:42]} a3 {[%emt 0:00:17]} 39. b7 {[%emt 0:00:04]} Rb8 {[%emt 0:00:30]} 40. Rf6 {[%emt 0:00:30]} a2 {[%emt 0:00:30]} 41. Rf1 {[%emt 0:00:30]} Rxb7 {[%emt 0:00:30]} 42. Ra1 {[%emt 0:00:30]} Rb2+ {[%emt 0:00:30]} 43. Kf3 {[%emt 0:00:30]} Ke5 {[%emt 0:00:30]} 44. Kg4 {[%emt 0:00:30]} Kf6 {[%emt 0:00:30]} 45. Kf4 {[%emt 0:00:30]} Rf2+ {[%emt 0:00:30]} 46. Ke3 {[%emt 0:00:30]} Rc2 {[%emt 0:00:30]} 47. Kf4 {[%emt 0:00:30]} d5 {[%emt 0:00:30]} 48. g4 {[%emt 0:00:30]} Rf2+ {[%emt 0:00:30]} 49. Ke3 {[%emt 0:00:30]} Rb2 {[%emt 0:00:30]} 50. Kf4 {[%emt 0:00:30]} d4 {[%emt 0:00:30]} 51. g5+ {[%emt 0:00:30]} Kg7 {[%emt 0:00:30]} 52. cxd4 {[%emt 0:00:30]} c4 {[%emt 0:00:30]} 53. h6+ {[%emt 0:08:47]} Kg6 {[%emt 0:09:10]} 54. Re1 {[%emt 0:00:54]} Rb1 {[%emt 0:06:06]} 55. Re6+ {[%emt 0:00:06]} Kf7 {[%emt 0:00:09]} 56. Rf6+ {[%emt 0:00:20]} Kg8 {[%emt 0:00:03]} 57. g6 {[%emt 0:01:58]} Rf1+ {[%emt 0:00:04]} 58. Kg5 {[%emt 0:00:36]} Rxf6 {[%emt 0:00:04]} 59. Kxf6 {[%emt 0:00:18]} a1=Q {[%emt 0:00:04]} 60. h7+ {[%emt 0:00:07]} Kh8 {[%emt 0:00:13]} 0-1

[Event "ROU-ch Open 2021"]
[Site "Iasi"]
[Date "2021.04.24"]
[Round "8.8"]
[White "Nanu, Costica-Ciprian"]
[Black "Antonica, Dragos-Andrei"]
[Result "1-0"]
[ECO "E14"]
[WhiteElo "2503"]
[BlackElo "2291"]
[Annotator "ChessBase"]
[PlyCount "57"]
[EventDate "2021.04.19"]
[EventType "swiss"]
[EventCountry "ROU"]
[SourceTitle "playchess.com"]
[Source "ChessBase"]
[SourceQuality "1"]
[TimeControl "5400+30"]

1. d4 {[%emt 0:00:00]} Nf6 {[%emt 0:00:00]} 2. Nf3 {[%emt 0:00:12]} e6 {[%emt 0:00:03]} 3. c4 {[%emt 0:00:29]} b6 {[%emt 0:00:28]} 4. e3 {[%emt 0:00:17]} Bb7 {[%emt 0:00:32]} 5. Bd3 {[%emt 0:00:16]} Be7 {[%emt 0:01:33]} 6. O-O {[%emt 0:01:16]} O-O {[%emt 0:00:03]} 7. Nc3 {[%emt 0:00:05]} d5 {[%emt 0:00:06]} 8. cxd5 {[%emt 0:00:12]} exd5 {[%emt 0:00:21]} 9. b3 {[%emt 0:00:15]} Nbd7 {[%emt 0:00:39]} 10. Bb2 {[%emt 0:00:07]} Re8 {[%emt 0:01:31]} 11. Rc1 {[%emt 0:00:07]} a6 {[%emt 0:01:49]} 12. Ne5 {[%emt 0:01:11]} Bd6 {[%emt 0:19:42]} 13. f4 {[%emt 0:00:13]} c5 {[%emt 0:00:33]} 14. a4 {[%emt 0:02:25]} Nf8 {[%emt 0:14:06]} 15. Ne2 {[%emt 0:16:52]} Ne4 {[%emt 0:05:49]} 16. dxc5 {[%emt 0:02:52]} Bxc5 {[%emt 0:08:10]} 17. Nd4 {[%emt 0:00:37]} Ng6 {[%emt 0:14:46]} 18. b4 {[%emt 0:11:07]} Bf8 {[%emt 0:12:07]} 19. Nf5 {[%emt 0:06:06]} Nd6 {[%emt 0:07:11]} 20. Qh5 {[%emt 0:06:15]} Nxf5 {[%emt 0:06:14]} 21. Qxf5 {[%emt 0:00:11]} Qe7 {[%emt 0:01:09]} 22. Bd4 {[%emt 0:00:59]} Bc8 {[%emt 0:02:10]} 23. Qh5 {[%emt 0:00:10]} f5 {[%emt 0:01:04]} 24. Rxc8 {[%emt 0:01:26]} Raxc8 {[%emt 0:00:45]} 25. Bxf5 {[%emt 0:00:06]} Qh4 {[%emt 0:00:42]} 26. Bxg6 {[%emt 0:00:20]} Qxh5 {[%emt 0:00:02]} 27. Bxh5 {[%emt 0:00:07]} g6 {[%emt 0:00:50]} 28. Bf3 {[%emt 0:00:16]} Red8 {[%emt 0:00:10]} 29. Bxb6 {[%emt 0:00:15]} 1-0

[Event "ROU-ch Open 2021"]
[Site "Iasi"]
[Date "2021.04.24"]
[Round "8.9"]
[White "Filip, Lucian-Ioan"]
[Black "Gavrilescu, David"]
[Result "1/2-1/2"]
[ECO "E04"]
[WhiteElo "2442"]
[BlackElo "2476"]
[Annotator "ChessBase"]
[PlyCount "59"]
[EventDate "2021.04.19"]
[EventType "swiss"]
[EventCountry "ROU"]
[SourceTitle "playchess.com"]
[Source "ChessBase"]
[SourceQuality "1"]
[TimeControl "5400+30"]

1. Nf3 {[%emt 0:00:00]} d5 {[%emt 0:00:00]} 2. d4 {[%emt 0:00:00]} Nf6 {[%emt 0:00:00]} 3. c4 {[%emt 0:00:00]} e6 {[%emt 0:00:00]} 4. g3 {[%emt 0:00:00]} dxc4 {[%emt 0:00:00]} 5. Bg2 {[%emt 0:00:10]} a6 {[%emt 0:00:01]} 6. O-O {[%emt 0:00:50]} Nc6 {[%emt 0:00:04]} 7. Nbd2 {[%emt 0:01:14]} b5 {[%emt 0:00:13]} 8. b3 {[%emt 0:01:01]} c3 {[%emt 0:00:19]} 9. Nb1 {[%emt 0:02:12]} b4 {[%emt 0:00:10]} 10. a3 {[%emt 0:00:16]} Rb8 {[%emt 0:00:05]} 11. axb4 {[%emt 0:04:39]} Bxb4 {[%emt 0:00:05]} 12. Qd3 {[%emt 0:02:45]} e5 {[%emt 0:00:03]} 13. Nxc3 {[%emt 0:01:18]} exd4 {[%emt 0:00:21]} 14. Ne4 {[%emt 0:00:19]} Bf5 {[%emt 0:32:23]} 15. Nd6+ {[%emt 0:16:29]} Bxd6 {[%emt 0:01:43]} 16. Qxf5 {[%emt 0:02:04]} Rb6 {[%emt 0:00:51]} 17. e3 {[%emt 0:41:34]} Qd7 {[%emt 0:13:36]} 18. Qxd7+ {[%emt 0:06:58]} Kxd7 {[%emt 0:04:53]} 19. Nxd4 {[%emt 0:02:06]} Nxd4 {[%emt 0:05:52]} 20. exd4 {[%emt 0:00:03]} c6 {[%emt 0:00:10]} 21. Bd2 {[%emt 0:03:53]} Ra8 {[%emt 0:04:15]} 22. Rfc1 {[%emt 0:04:23]} Nd5 {[%emt 0:11:12]} 23. Ba5 {[%emt 0:00:28]} Rxb3 {[%emt 0:00:41]} 24. Bh3+ {[%emt 0:00:02]} Ke7 {[%emt 0:01:30]} 25. Rxc6 {[%emt 0:00:09]} Bb4 {[%emt 0:01:35]} 26. Bxb4+ {[%emt 0:07:14]} Rxb4 {[%emt 0:00:21]} 27. Re1+ {[%emt 0:00:18]} Kf8 {[%emt 0:00:02]} 28. Bg2 {[%emt 0:00:08]} Ne7 {[%emt 0:00:19]} 29. Rd6 {[%emt 0:03:13]} Re8 {[%emt 0:01:47]} 30. Rxa6 {[%emt 0:00:43]} 1/2-1/2